bitfinex/quotes_BTCUSD_20240715
["timestamp","ask_amount","ask_price","bid_price","bid_amount"]
[1721022192291,2.29651831,63014.0,62994.0,0.00306353]
[1721022192292,0.003,63005.0,62998.0,0.00306353]
[1721022192502,0.2258,62999.0,62998.0,0.00306353]
[1721022192678,0.2258,62999.0,62993.0,0.5]
[1721022193144,0.2258,62999.0,62994.0,0.063645]
[1721022193145,0.1458,62998.0,62994.0,0.063645]
[1721022193761,0.0611,63006.0,62992.0,0.1]
[1721022193957,0.368652,63002.0,62993.0,0.142871]
[1721022194163,0.2258,63002.0,62997.0,0.142862]
[1721022194360,0.2258,63002.0,62994.0,0.126]
[1721022194560,0.2258,63002.0,62996.0,0.142866]
[1721022194780,0.2258,63002.0,62998.0,0.014]
[1721022195187,0.2258,63002.0,62996.0,0.142866]
[1721022195393,0.2258,63002.0,62993.0,0.349386]
[1721022195606,0.2258,63002.0,62994.0,0.014]
[1721022195809,0.142858,63000.0,62994.0,0.014]
[1721022196064,0.2258,63002.0,62994.0,0.014]
[1721022196065,0.654359,63002.0,62994.0,0.014]
[1721022196242,0.2258,63002.0,62997.0,0.142862]
[1721022196446,0.2258,63002.0,62994.0,0.29974]
[1721022196447,0.2258,63002.0,62998.0,0.112]
[1721022197322,0.2258,63002.0,62997.0,0.5]
[1721022197323,0.2268,63002.0,62997.0,0.5]
[1721022197747,0.2268,63002.0,62998.0,0.014]
[1721022197748,0.2258,63002.0,62998.0,0.014]
[1721022198115,0.2268,63002.0,62998.0,0.02788]
[1721022198671,0.2258,63002.0,62997.0,0.5]
[1721022198882,0.01661219,63001.0,62997.0,0.5]
[1721022199601,0.01661219,63001.0,63000.0,0.254857]
[1721022199732,0.01661219,63001.0,63000.0,0.142857]
[1721022199932,0.24241219,63001.0,63000.0,0.00776552]
[1721022200342,0.24241219,63001.0,62998.0,0.014]
[1721022200758,0.24241219,63001.0,62999.0,0.00775924]
[1721022201183,0.38826719,63001.0,62993.0,0.063645]
[1721022201383,0.53296719,63001.0,63000.0,0.014]
[1721022201584,0.53296719,63001.0,62997.0,0.014]
[1721022201585,0.142859,62999.0,62997.0,0.014]
[1721022201899,0.003,62995.0,62993.0,0.063645]
[1721022202112,0.2258,62994.0,62993.0,0.063645]
[1721022202661,0.36867,62994.0,62993.0,0.063645]
[1721022202860,0.145873,62993.0,62992.0,0.1]
[1721022203005,0.207473,62993.0,62992.0,0.1]
[1721022203211,0.778965,62993.0,62992.0,0.1]
[1721022203620,0.858665,62993.0,62992.0,0.1]
[1721022204806,0.858665,62993.0,62992.0,0.11]
[1721022205023,1.005784,62993.0,62992.0,0.11]
[1721022205198,1.244411,62993.0,62992.0,0.11]
[1721022205400,1.25430758,62993.0,62992.0,0.11]
[1721022205603,1.25430761,62993.0,62992.0,0.11]
[1721022206137,1.55530761,62993.0,62992.0,0.122]
[1721022206332,1.345411,62993.0,62992.0,0.122]
[1721022206534,1.51742547,62993.0,62992.0,0.122]
[1721022206742,1.51442547,62993.0,62992.0,0.122]
[1721022206937,0.96656156,62993.0,62992.0,0.122]
[1721022207147,0.385173,62993.0,62992.0,0.112]
[1721022207351,0.385173,62993.0,62992.0,0.114]
[1721022207707,0.385173,62993.0,62992.0,0.112]
[1721022207708,0.670919,62993.0,62992.0,0.112]
[1721022207909,0.670919,62993.0,62992.0,0.113]
[1721022208109,0.956665,62993.0,62992.0,0.112]
[1721022208683,0.955665,62993.0,62992.0,0.1]
[1721022208878,1.12078291,62993.0,62992.0,0.105913]
[1721022209293,1.23067943,62993.0,62992.0,0.105913]
[1721022209482,1.23067943,62993.0,62970.0,0.5]
[1721022209483,0.285833,62974.0,62970.0,0.5]
[1721022209683,0.0617,62970.0,62968.0,0.4863143]
[1721022209920,0.0617,62970.0,62968.0,0.063671]
[1721022210046,0.0617,62970.0,62965.0,0.5]
[1721022210253,0.222828,62969.0,62960.0,0.112]
[1721022210452,0.222828,62969.0,62966.0,0.063673]
[1721022210656,0.222828,62969.0,62962.0,0.112]
[1721022210858,0.222828,62969.0,62963.0,0.063674]
[1721022211083,0.14293,62968.0,62963.0,0.063674]
[1721022211285,0.222827,62969.0,62963.0,0.175674]
[1721022211493,0.0799,62969.0,62964.0,0.5]
[1721022211699,0.222827,62969.0,62963.0,0.063674]
[1721022211896,0.222827,62969.0,62965.0,0.014]
[1721022212095,0.222827,62969.0,62963.0,0.063674]
[1721022212499,0.2258,62964.0,62963.0,0.063674]
[1721022212700,0.003,62960.0,62949.0,0.509163]
[1721022212863,0.2258,62951.0,62949.0,0.121163]
[1721022213064,0.2258,62951.0,62949.0,0.621163]
[1721022213444,0.2258,62951.0,62950.0,0.318618]
[1721022213576,0.0623,62959.0,62950.0,0.318618]
[1721022213577,0.2258,62957.0,62953.0,0.112]
[1721022213927,0.2258,62957.0,62953.0,0.254963]
[1721022214083,0.01661219,62956.0,62953.0,0.111]
[1721022214483,0.01661219,62956.0,62954.0,0.111]
[1721022215042,0.01661219,62956.0,62953.0,0.119]
[1721022215228,0.01661219,62956.0,62953.0,0.111]
[1721022215384,0.01661219,62956.0,62952.0,0.111]
[1721022215604,0.01761219,62956.0,62953.0,0.008]
[1721022216510,0.01842119,62956.0,62953.0,0.016]
[1721022216910,0.0623,62959.0,62953.0,0.111]
[1721022217109,0.09221219,62960.0,62956.0,0.111]
[1721022217275,0.09221219,62960.0,62956.0,0.10551]
[1721022217477,0.09221219,62960.0,62954.0,0.01]
[1721022217678,0.23515919,62960.0,62954.0,0.01]
[1721022217878,0.23515919,62960.0,62953.0,0.10551]
[1721022217879,0.09221219,62960.0,62953.0,0.10551]
[1721022218492,0.09221219,62960.0,62953.0,0.12451]
[1721022218493,0.002,62956.0,62953.0,0.12451]
[1721022218698,0.002,62956.0,62953.0,0.019]
[1721022218893,0.001,62956.0,62953.0,0.009]
[1721022219530,0.23516119,62960.0,62952.0,0.32952738]
[1721022219531,0.218549,62960.0,62952.0,0.32952738]
[1721022219744,0.0756,62960.0,62953.0,0.10551]
[1721022219943,0.0756,62960.0,62953.0,0.11151]
[1721022220153,0.0756,62960.0,62956.0,0.10551]
[1721022220352,0.01088823,62961.0,62956.0,0.10551]
[1721022220579,0.01088823,62961.0,62954.0,0.10551]
[1721022220786,0.2258,62962.0,62956.0,0.10551]
[1721022220933,0.453442,62972.0,62955.0,0.142959]
[1721022220934,0.2258,62968.0,62960.0,0.18656238]
[1721022221135,0.142939,62964.0,62958.0,0.5]
[1721022221336,0.2258,62961.0,62958.0,0.5]
[1721022221538,0.2258,62961.0,62956.0,0.148955]
[1721022221939,0.2258,62961.0,62956.0,0.142955]
[1721022222336,0.2258,62961.0,62960.0,0.001]
[1721022223228,0.654636,62961.0,62960.0,0.001]
[1721022223431,0.368745,62961.0,62960.0,0.001]
[1721022223649,0.368745,62961.0,62952.0,0.22901738]
[1721022223650,0.2258,62961.0,62956.0,0.10551]
[1721022223877,0.2258,62961.0,62955.0,0.60551]
[1721022224011,0.2258,62961.0,62956.0,0.008]
[1721022224216,0.369745,62961.0,62960.0,0.011]
[1721022224453,0.2268,62961.0,62960.0,0.011]
[1721022224689,0.368746,62961.0,62956.0,0.0027264]
[1721022224811,0.368746,62961.0,62952.0,0.22401738]
[1721022224812,0.654637,62961.0,62960.0,0.01]
[1721022225015,0.796037,62961.0,62960.0,0.01]
[1721022225256,0.800037,62961.0,62960.0,0.01]
[1721022225433,1.2045195,62961.0,62960.0,0.01]
[1721022225642,0.289904,62959.0,62955.0,0.011]
[1721022225840,0.285905,62958.0,62955.0,0.011]
[1721022226043,0.142956,62956.0,62955.0,0.011]
[1721022226385,0.285913,62956.0,62950.0,0.063648]
[1721022226588,0.2258,62951.0,62950.0,0.063648]
[1721022227239,0.2258,62951.0,62949.0,0.009163]
[1721022227822,0.2258,62951.0,62950.0,0.028]
[1721022228191,0.2258,62951.0,62949.0,0.009163]
[1721022228390,0.2258,62951.0,62949.0,0.023163]
[1721022228595,0.428911,62950.0,62949.0,0.023163]
[1721022228797,0.428911,62950.0,62949.0,0.009163]
[1721022228798,0.571711,62950.0,62949.0,0.009163]
[1721022228995,0.28577,62950.0,62949.0,0.009163]
[1721022229194,0.6518612,62950.0,62949.0,0.009163]
[1721022229406,0.857652,62950.0,62949.0,0.009163]
[1721022229573,0.28577,62950.0,62949.0,0.023163]
[1721022230195,0.28577,62950.0,62949.0,0.009163]
[1721022230393,0.28677,62950.0,62949.0,0.020163]
[1721022230799,0.28677,62950.0,62949.0,0.030163]
[1721022231041,0.28577,62950.0,62949.0,0.009163]
[1721022231308,0.28677,62950.0,62949.0,0.030163]
[1721022232855,0.28577,62950.0,62949.0,0.019163]
[1721022233020,0.28577,62950.0,62949.0,0.031163]
[1721022233021,0.28677,62950.0,62949.0,0.031163]
[1721022233391,0.28677,62950.0,62949.0,0.021163]
[1721022233609,0.28577,62950.0,62949.0,0.009163]
[1721022234039,0.28677,62950.0,62949.0,0.037163]
[1721022234239,0.0653,62950.0,62949.0,0.037163]
[1721022234439,0.001,62950.0,62949.0,0.142673]
[1721022234641,0.142964,62953.0,62949.0,0.037163]
[1721022234904,0.1416,62955.0,62949.0,0.037163]
[1721022234905,0.2258,62951.0,62949.0,0.037163]
[1721022235388,0.1416,62955.0,62950.0,0.10551]
[1721022235542,0.2258,62955.0,62953.0,0.10551]
[1721022235742,0.2258,62955.0,62954.0,0.10551]
[1721022235943,0.2258,62955.0,62953.0,0.10551]
[1721022236143,0.2258,62955.0,62952.0,0.08105238]
[1721022237072,0.2258,62955.0,62954.0,0.009]
[1721022237601,0.2258,62955.0,62952.0,0.09205238]
[1721022237802,0.2258,62955.0,62952.0,0.10305238]
[1721022238162,0.2258,62955.0,62953.0,0.10551]
[1721022238371,0.2258,62955.0,62952.0,0.09205238]
[1721022239216,0.2258,62955.0,62952.0,0.18656238]
[1721022239535,0.2258,62955.0,62951.0,0.00306353]
[1721022239731,0.2258,62955.0,62954.0,0.023]
[1721022240081,0.2258,62955.0,62949.0,0.009163]
[1721022240287,0.2258,62955.0,62952.0,0.011]
[1721022240526,0.2258,62955.0,62952.0,0.023]
[1721022240728,0.2258,62955.0,62953.0,0.08105238]
[1721022241093,0.2258,62955.0,62954.0,0.011]
[1721022241292,0.2258,62955.0,62953.0,0.08105238]
[1721022241495,0.2258,62955.0,62949.0,0.021163]
[1721022241704,0.2258,62955.0,62952.0,0.011]
[1721022241903,0.00083,62956.0,62953.0,0.08105238]
[1721022243183,0.00083,62956.0,62954.0,0.012]
[1721022243386,0.00083,62956.0,62955.0,0.10551]
[1721022243747,0.00083,62956.0,62954.0,0.10551]
[1721022243963,0.01744219,62956.0,62954.0,0.259471]
[1721022244129,0.01744219,62956.0,62954.0,0.248471]
[1721022244591,0.01744219,62956.0,62953.0,0.08105238]
[1721022244592,0.01744219,62956.0,62955.0,0.009]
[1721022244788,0.01744219,62956.0,62953.0,0.09105238]
[1721022245206,0.01744219,62956.0,62955.0,0.534387]
[1721022245811,0.01744219,62956.0,62955.0,0.820305]
[1721022246028,0.01744219,62956.0,62955.0,0.895305]
[1721022246221,0.01744219,62956.0,62955.0,1.181223]
[1721022246672,0.00083,62956.0,62955.0,1.490141]
[1721022246881,0.00083,62956.0,62955.0,1.66512]
[1721022247048,0.00083,62956.0,62955.0,1.79710246]
[1721022247259,0.00083,62956.0,62955.0,1.83420305]
[1721022247432,0.00083,62956.0,62955.0,1.89424661]
[1721022247633,0.00083,62956.0,62955.0,2.55944891]
[1721022248161,0.00083,62956.0,62955.0,2.34651777]
[1721022248454,0.00083,62956.0,62955.0,2.19554029]
[1721022248603,0.00083,62956.0,62955.0,2.11082054]
[1721022249021,0.00083,62956.0,62955.0,2.18157093]
[1721022249221,0.00083,62956.0,62955.0,2.05904898]
[1721022249511,0.00083,62956.0,62955.0,1.97884779]
[1721022249681,0.01661219,62964.0,62963.0,1.606097]
[1721022249843,0.01661219,62964.0,62963.0,1.629097]
[1721022250593,0.1429,62982.0,62963.0,1.629097]
[1721022250594,0.2912,62985.0,62977.0,0.10551]
[1721022250823,0.2258,62985.0,62980.0,0.10551]
[1721022251026,0.2258,62985.0,62984.0,0.10551]
[1721022251226,0.2258,62985.0,62978.0,0.285814]
[1721022251227,0.01106208,62989.0,62988.0,0.10551]
[1721022251628,0.2258,62991.0,62987.0,0.142885]
[1721022251835,0.01661219,62989.0,62987.0,0.142885]
[1721022252147,0.01661219,62989.0,62985.0,0.248399]
[1721022252474,0.01661219,62989.0,62988.0,0.10551]
[1721022252919,0.01661219,62989.0,62986.0,0.248397]
[1721022253232,0.01661219,62989.0,62984.0,0.147892]
[1721022253452,0.01661219,62989.0,62984.0,0.290785]
[1721022253641,0.01661219,62989.0,62988.0,0.10551]
[1721022253844,0.01661219,62989.0,62988.0,0.11051]
[1721022254189,0.01661219,62989.0,62988.0,0.253394]
[1721022254394,0.01661219,62989.0,62988.0,0.534162]
[1721022255239,0.01112392,62993.0,62989.0,0.14288]
[1721022255441,0.2258,62997.0,62989.0,0.14288]
[1721022255653,0.2258,62997.0,62991.0,0.142877]
[1721022255987,0.23665469,62997.0,62992.0,0.10551]
[1721022256165,0.01661219,62998.0,62997.0,0.10551]
[1721022256365,0.01661219,62998.0,62997.0,0.248373]
[1721022256624,0.1,63002.0,62997.0,0.248373]
[1721022256625,0.1,63002.0,62998.0,0.10551]
[1721022256833,0.1,63002.0,62996.0,0.10551]
[1721022257035,0.1,63002.0,62996.0,0.248376]
[1721022257186,0.1,63002.0,62996.0,0.285729]
[1721022257187,0.01090547,63002.0,62996.0,0.285729]
[1721022257404,0.2258,63003.0,62996.0,0.534104]
[1721022257604,0.2258,63003.0,62997.0,0.004]
[1721022258066,0.2258,63003.0,62995.0,0.142868]
[1721022258067,0.2298,63003.0,62995.0,0.142868]
[1721022258378,0.004,62999.0,62992.0,0.142874]
[1721022258547,0.142854,63002.0,62992.0,0.142874]
[1721022258548,0.004,63000.0,62992.0,0.142874]
[1721022258758,0.004,63000.0,62991.0,0.60551]
[1721022258759,0.004,63000.0,62993.0,0.142872]
[1721022259092,0.2258,62997.0,62993.0,0.142872]
[1721022259447,0.29666046,63003.0,62995.0,0.248377]
[1721022259448,0.23675846,63003.0,62995.0,0.248377]
[1721022259651,0.23675846,63003.0,62995.0,0.10551]
[1721022259878,0.23675846,63003.0,62971.0,0.0627]
[1721022259880,0.004,62985.0,62971.0,0.0627]
[1721022260052,0.004,62985.0,62969.0,0.0832]
[1721022260053,0.004,62983.0,62977.0,0.4863143]
[1721022260256,0.2258,62979.0,62973.0,0.5]
[1721022260466,0.2258,62979.0,62972.0,0.10551]
[1721022260684,0.2258,62973.0,62970.0,0.10551]
[1721022261228,0.2258,62973.0,62971.0,0.006]
[1721022261431,0.2258,62973.0,62968.0,0.5]
[1721022261842,0.2258,62973.0,62972.0,0.014]
[1721022262043,0.2258,62973.0,62968.0,0.5]
[1721022262244,0.2258,62973.0,62967.0,0.10551]
[1721022262449,0.2258,62973.0,62968.0,0.5]
[1721022262903,0.2258,62973.0,62970.0,0.014]
[1721022263100,0.511637,62973.0,62970.0,0.014]
[1721022263325,0.142922,62971.0,62970.0,0.014]
[1721022263538,0.142933,62967.0,62956.0,0.0627]
[1721022263740,0.2258,62965.0,62960.0,0.10551]
[1721022264185,0.2258,62965.0,62960.0,0.60551]
[1721022264375,0.2258,62965.0,62962.0,0.10551]
[1721022264812,0.2258,62965.0,62960.0,0.10551]
[1721022265020,0.2258,62965.0,62960.0,0.5]
[1721022265241,0.2268,62965.0,62960.0,0.507]
[1721022265447,0.2268,62965.0,62960.0,0.11251]
[1721022265647,0.2268,62965.0,62960.0,0.007]
[1721022266285,0.2278,62965.0,62962.0,0.10551]
[1721022266483,0.2278,62965.0,62963.0,0.60551]
[1721022266704,0.2268,62965.0,62963.0,0.60551]
[1721022266915,0.2268,62965.0,62960.0,0.008]
[1721022267044,0.2268,62965.0,62962.0,0.077675]
[1721022267045,0.2278,62965.0,62962.0,0.077675]
[1721022267247,0.2278,62965.0,62960.0,0.11351]
[1721022267455,0.2268,62965.0,62960.0,0.10551]
[1721022267658,0.2278,62965.0,62962.0,0.078676]
[1721022267876,0.2278,62965.0,62962.0,0.008]
[1721022268261,0.2288,62965.0,62962.0,0.022]
[1721022268432,0.370736,62965.0,62962.0,0.008]
[1721022268636,0.374736,62965.0,62962.0,0.008]
[1721022268838,0.370736,62965.0,62962.0,0.008]
[1721022269037,0.369736,62965.0,62960.0,0.063677]
[1721022269262,0.373736,62965.0,62960.0,0.063677]
[1721022269464,0.373736,62965.0,62956.0,0.248465]
[1721022269694,0.14294,62964.0,62960.0,0.007]
[1721022269940,0.14294,62964.0,62962.0,0.007]
[1721022270140,0.2328,62965.0,62962.0,0.007]
[1721022270141,0.781105,62963.0,62962.0,0.007]
[1721022270265,0.004,62957.0,62951.0,0.47704115]
[1721022270489,0.285902,62959.0,62952.0,0.063677]
[1721022270490,0.2258,62954.0,62952.0,0.063677]
[1721022270897,0.2258,62954.0,62949.0,0.509163]
[1721022271084,0.2258,62954.0,62950.0,0.063687]
[1721022272912,0.368763,62954.0,62950.0,0.063687]
[1721022273091,0.428911,62950.0,62949.0,0.009163]
[1721022273247,0.142968,62951.0,62950.0,0.014]
[1721022273855,0.428904,62951.0,62950.0,0.014]
[1721022274052,0.14297,62950.0,62949.0,0.009163]
[1721022275089,0.14397,62950.0,62949.0,0.023163]
[1721022275246,0.002,62950.0,62949.0,0.142673]
[1721022276142,0.002,62950.0,62949.0,0.037163]
[1721022276313,0.00180882,62950.0,62949.0,0.037163]
[1721022276546,0.14477882,62950.0,62949.0,0.037163]
[1721022276717,0.20957882,62950.0,62949.0,0.037163]
[1721022277323,0.20957882,62950.0,62949.0,0.023163]
[1721022277324,0.20877,62950.0,62949.0,0.023163]
[1721022277476,0.37973104,62954.0,62949.0,0.114673]
[1721022277820,0.37973104,62954.0,62950.0,0.10451]
[1721022278137,0.37973104,62954.0,62949.0,0.112673]
[1721022278419,0.01096904,62954.0,62953.0,0.60351]
[1721022278634,0.01661219,62957.0,62953.0,0.889437]
[1721022278865,0.01661219,62957.0,62956.0,0.10351]
[1721022279390,0.01661219,62957.0,62953.0,0.60351]
[1721022279587,0.01661219,62957.0,62954.0,0.00206353]
[1721022280337,0.01661219,62957.0,62953.0,0.5]
[1721022280539,0.01761219,62957.0,62956.0,0.006]
[1721022280924,0.01661219,62957.0,62953.0,0.5]
[1721022281277,0.01761219,62957.0,62954.0,0.006]
[1721022281480,0.01761219,62957.0,62955.0,0.10351]
[1721022281692,0.01761219,62957.0,62956.0,0.10351]
[1721022282003,0.01761219,62957.0,62956.0,0.246466]
[1721022282413,0.01761219,62957.0,62956.0,0.10351]
[1721022282830,0.01761219,62957.0,62956.0,0.246466]
[1721022283069,0.01861219,62957.0,62956.0,0.246466]
[1721022283274,0.01861219,62957.0,62953.0,0.753472]
[1721022283472,0.01761219,62957.0,62953.0,0.746472]
[1721022283691,0.01761219,62957.0,62954.0,0.246469]
[1721022283927,0.01861219,62957.0,62956.0,0.11151]
[1721022284057,0.01861219,62957.0,62956.0,0.540379]
[1721022284255,0.01761219,62957.0,62956.0,0.532379]
[1721022284455,0.01861219,62957.0,62956.0,0.539379]
[1721022284799,0.01761219,62957.0,62956.0,0.818292]
[1721022285311,0.01861219,62957.0,62956.0,0.818292]
[1721022285713,0.01961219,62957.0,62956.0,0.831292]
[1721022285914,0.01861219,62957.0,62956.0,1.117205]
[1721022286069,0.01861219,62957.0,62956.0,1.199305]
[1721022286862,0.01961219,62957.0,62956.0,1.212305]
[1721022288235,0.01961219,62957.0,62956.0,0.926392]
[1721022289244,0.01961219,62957.0,62956.0,0.272466]
[1721022289395,0.01961219,62957.0,62956.0,0.026]
[1721022290003,0.01961219,62957.0,62956.0,0.168956]
[1721022290207,0.01961219,62957.0,62956.0,0.026]
[1721022290813,0.01961219,62957.0,62956.0,0.12951]
[1721022291234,0.01961219,62957.0,62956.0,0.272466]
[1721022291684,0.01961219,62957.0,62956.0,0.12951]
[1721022291897,0.01961219,62957.0,62956.0,0.026]
[1721022292410,0.01961219,62957.0,62956.0,0.272466]
[1721022292661,0.02951237,62957.0,62956.0,0.026]
[1721022292863,0.02951237,62957.0,62956.0,0.272466]
[1721022293311,0.0295125,62957.0,62956.0,0.558379]
[1721022293621,0.0295125,62957.0,62956.0,0.272466]
[1721022293825,0.0295125,62957.0,62956.0,0.168956]
[1721022296512,0.01961219,62957.0,62956.0,0.168956]
[1721022296713,0.0295125,62957.0,62956.0,0.168956]
[1721022299238,0.0295125,62957.0,62956.0,0.558379]
[1721022300075,0.02951214,62957.0,62956.0,0.558379]
[1721022300274,0.02951214,62957.0,62956.0,1.529805]
[1721022300510,0.003,62957.0,62956.0,1.552805]
[1721022300803,0.003,62957.0,62956.0,1.792805]
[1721022300948,0.003,62957.0,62956.0,1.852805]
[1721022301383,0.002,62957.0,62956.0,1.279805]
[1721022301563,0.002,62957.0,62956.0,1.779805]
[1721022301776,0.002,62957.0,62956.0,1.506892]
[1721022302057,0.002,62957.0,62956.0,0.970892]
[1721022302058,0.001,62957.0,62956.0,0.970892]
[1721022302261,0.001,62966.0,62965.0,0.142936]
[1721022302585,0.00989892,62968.0,62965.0,0.428809]
[1721022302786,0.01089892,62967.0,62965.0,0.428809]
[1721022302938,0.00989892,62966.0,62965.0,0.428809]
[1721022303283,0.00989892,62966.0,62965.0,0.532319]
[1721022303454,0.00989892,62966.0,62963.0,0.5]
[1721022303455,0.00989892,62966.0,62964.0,0.642937]
[1721022303658,0.00989892,62965.0,62964.0,0.642937]
[1721022304070,0.00989892,62969.0,62964.0,0.642937]
[1721022304272,0.00989892,62968.0,62965.0,0.198935]
[1721022304478,0.00989892,62968.0,62966.0,0.142934]
[1721022304860,0.00989892,62967.0,62966.0,0.142934]
[1721022305204,0.07911219,62971.0,62965.0,0.068]
[1721022305205,0.00989892,62970.0,62965.0,0.512]
[1721022305449,0.01089892,62969.0,62965.0,0.654936]
[1721022305705,0.00989892,62968.0,62965.0,0.654936]
[1721022305904,0.00989917,62968.0,62966.0,0.011]
[1721022306055,0.00989917,62968.0,62966.0,0.021]
[1721022306252,0.001,62967.0,62966.0,0.11351]
[1721022306472,0.01089917,62967.0,62966.0,0.10351]
[1721022306647,0.00989917,62967.0,62966.0,0.10351]
[1721022307070,0.00989917,62969.0,62966.0,0.10351]
[1721022307475,0.001,62968.0,62966.0,0.11351]
[1721022307742,0.00989917,62967.0,62966.0,0.11351]
[1721022308333,0.001,62969.0,62966.0,0.01]
[1721022308334,0.00989917,62968.0,62966.0,0.01]
[1721022308540,0.00989917,62967.0,62966.0,0.01]
[1721022308741,0.00989917,62967.0,62965.0,0.01]
[1721022308868,0.01089917,62966.0,62964.0,0.142938]
[1721022309208,0.00989853,62965.0,62964.0,0.142938]
[1721022309789,0.001,62969.0,62966.0,0.01]
[1721022309990,0.2258,62970.0,62966.0,0.01]
[1721022309991,0.001,62967.0,62966.0,0.01]
[1721022310188,0.001,62967.0,62964.0,0.013]
[1721022310189,0.01089867,62967.0,62964.0,0.013]
[1721022310480,0.00989867,62966.0,62965.0,0.142936]
[1721022311358,0.00989867,62968.0,62965.0,0.642936]
[1721022311697,0.00989867,62968.0,62966.0,0.142933]
[1721022311901,0.00989867,62968.0,62966.0,0.152933]
[1721022312122,0.00989867,62967.0,62966.0,0.01]
[1721022312479,0.001,62969.0,62968.0,0.10351]
[1721022312660,0.01089826,62969.0,62968.0,0.10351]
[1721022312986,0.01661219,62971.0,62970.0,1.103985]
[1721022313119,0.02650965,62971.0,62970.0,1.103985]
[1721022313319,0.02650965,62971.0,62970.0,2.75196778]
[1721022313320,0.01661219,62971.0,62970.0,2.75196778]
[1721022313520,0.1428149,62998.0,62970.0,2.75196778]
[1721022313521,0.32100993,63007.0,62997.0,0.60351]
[1721022313707,0.00989422,63001.0,63000.0,0.42857]
[1721022313908,0.02650641,63001.0,63000.0,0.42857]
[1721022314108,0.02650641,63001.0,62998.0,0.14286]
[1721022314327,0.01661219,63001.0,62992.0,0.10351]
[1721022314582,0.00989361,63000.0,62995.0,0.142867]
[1721022314756,0.00989361,63000.0,62996.0,0.142865]
[1721022315335,0.01661219,63001.0,62996.0,0.142865]
[1721022315537,0.1442,62998.0,62990.0,0.142878]
[1721022315740,0.2258,62995.0,62992.0,0.001]
[1721022316142,0.2258,62995.0,62989.0,0.60351]
[1721022316344,0.2258,62995.0,62989.0,0.746391]
[1721022316550,0.2258,62995.0,62989.0,0.246391]
[1721022316755,0.01661219,63001.0,63000.0,0.142857]
[1721022316933,0.01661219,63001.0,62993.0,0.5]
[1721022316934,0.02650638,63001.0,62997.0,0.142862]
[1721022317170,0.00989413,63000.0,62993.0,0.642872]
[1721022317377,0.24641219,63001.0,62993.0,0.642872]
[1721022317579,0.00989436,63000.0,62994.0,0.01080077]
[1721022317790,0.00989436,63000.0,62993.0,0.642872]
[1721022317990,0.00989436,63000.0,62992.0,0.11351]
[1721022317991,0.004,62999.0,62992.0,0.01]
[1721022318193,0.004,62999.0,62993.0,0.0108058]
[1721022318194,0.2298,62995.0,62993.0,0.0108058]
[1721022318406,0.0826,62994.0,62993.0,0.0108058]
[1721022318635,0.1461,62994.0,62993.0,0.0108058]
[1721022319108,0.2258,62995.0,62993.0,0.5108058]
[1721022319513,0.2258,62995.0,62993.0,0.0108058]
[1721022319925,0.2258,62995.0,62992.0,0.006]
[1721022320154,0.2258,62995.0,62994.0,0.01080077]
[1721022320328,0.2258,62995.0,62993.0,0.0228058]
[1721022320477,0.2258,62995.0,62994.0,0.01080077]
[1721022320671,0.004,62993.0,62992.0,0.006]
[1721022321207,0.004,62991.0,62987.0,0.47704115]
[1721022321410,0.004,62990.0,62982.0,0.10351]
[1721022321570,0.2298,62989.0,62983.0,0.142893]
[1721022321805,0.2298,62989.0,62978.0,0.367612]
[1721022321806,0.0613,62985.0,62978.0,0.246417]
[1721022322009,0.004,62981.0,62977.0,0.47704115]
[1721022322248,0.2298,62983.0,62977.0,0.47704115]
[1721022322457,0.001,62980.0,62977.0,0.47704115]
[1721022322709,0.001,62982.0,62977.0,0.47704115]
[1721022322938,0.001,62982.0,62978.0,0.01088136]
[1721022323177,0.001,62982.0,62977.0,0.48504115]
[1721022323417,0.001,62982.0,62978.0,0.01088136]
[1721022323615,0.001,62982.0,62977.0,0.47704115]
[1721022323838,0.004,62979.0,62977.0,0.47704115]
[1721022324057,0.001,62978.0,62977.0,0.47704115]
[1721022324260,0.001,62980.0,62977.0,0.47704115]
[1721022324807,0.004,62982.0,62977.0,0.48104115]
[1721022324808,0.004,62979.0,62977.0,0.48104115]
[1721022325216,0.001,62978.0,62977.0,0.47704115]
[1721022325568,0.001,62978.0,62977.0,0.47904115]
[1721022325783,0.001,62980.0,62977.0,0.58255115]
[1721022326145,0.001,62982.0,62978.0,0.10351]
[1721022326372,0.001,62982.0,62981.0,0.856]
[1721022326547,0.0623,62991.0,62981.0,0.856]
[1721022326548,0.001,62990.0,62985.0,0.246399]
[1721022326717,0.001,62990.0,62986.0,0.285775]
[1721022326893,0.001,62994.0,62988.0,0.142883]
[1721022327094,0.00989588,62993.0,62988.0,0.142883]
[1721022327303,0.00989588,62993.0,62987.0,0.285772]
[1721022327304,0.001,62992.0,62987.0,0.141886]
[1721022327504,0.001,62992.0,62984.0,0.285785]
[1721022327505,0.004,62990.0,62984.0,0.142892]
[1721022327705,0.00989599,62991.0,62981.0,0.5]
[1721022327706,0.004,62986.0,62981.0,0.5]
[1721022327929,0.004,62983.0,62977.0,0.58055115]
[1721022328130,0.2881,62982.0,62977.0,0.47704115]
[1721022328331,0.001,62981.0,62977.0,0.47704115]
[1721022328494,0.001,62981.0,62980.0,0.246412]
[1721022328695,0.2258,62988.0,62979.0,0.389319]
[1721022328901,0.2258,62988.0,62981.0,0.10351]
[1721022329122,0.2258,62988.0,62987.0,0.142886]
[1721022329325,0.2258,62988.0,62981.0,0.10351]